bitfinex/quotes_SOLUSD_20241115
["timestamp","ask_amount","ask_price","bid_price","bid_amount"]
[1731711892141,4.5689,218.87,218.81,8.8310675]
[1731711892368,0.4345223,218.9,218.83,8.8310675]
[1731711892576,0.4345223,218.9,218.77,20.0]
[1731711892577,0.4345223,218.9,218.84,8.8310675]
[1731711892869,0.4345223,218.9,218.85,13.77544159]
[1731711892870,5.0028223,218.9,218.85,13.77544159]
[1731711893061,0.4345223,218.9,218.85,13.77544159]
[1731711893262,0.4345223,218.9,218.88,13.77544159]
[1731711893949,0.4345223,218.9,218.89,13.77544159]
[1731711896052,0.4345223,218.9,218.88,13.77544159]
[1731711896252,0.4345223,218.9,218.87,13.77544159]
[1731711896455,0.4345223,218.9,218.89,51.5469318]
[1731711896664,0.4345223,218.9,218.89,71.6724218]
[1731711897775,0.4345223,218.9,218.89,0.09367462]
[1731711897982,0.4345223,218.9,218.89,37.77149021]
[1731711899173,0.4345223,218.9,218.89,23.99604862]
[1731711899677,0.4345223,218.9,218.89,37.77149021]
[1731711900567,0.4345223,218.9,218.89,13.77544159]
[1731711901074,5.0028223,218.9,218.85,13.77544159]
[1731711901279,5.0028223,218.9,218.83,13.77544159]
[1731711901650,0.4345223,218.9,218.87,13.77544159]
[1731711902071,0.4345223,218.9,218.89,13.77544159]
[1731711903681,0.4345223,218.9,218.89,88.86158021]
[1731711903977,33.5583,219.08,218.98,13.77544159]
[1731711903978,13.77544159,219.05,218.98,13.77544159]
[1731711904158,13.77544159,219.05,218.96,13.77544159]
[1731711904774,4.5653,219.04,218.96,13.77544159]
[1731711904982,4.5653,219.04,218.96,18.34234159]
[1731711905878,4.565,219.06,219.0,13.77544159]
[1731711906869,48.46479897,219.08,219.0,13.77544159]
[1731711907373,34.68935738,219.08,219.02,13.77544159]
[1731711908382,48.46479897,219.08,219.0,13.77544159]
[1731711909267,48.46479897,219.08,218.96,25.19304159]
[1731711909268,13.77544159,219.04,218.96,25.19304159]
[1731711909470,13.77544159,219.02,218.94,13.77544159]
[1731711910977,13.77544159,219.04,218.97,23.776884]
[1731711911177,18.34084159,219.04,218.97,23.776884]
[1731711911770,18.34054159,219.06,218.98,13.77544159]
[1731711911971,18.34054159,219.06,218.99,23.776884]
[1731711912176,18.34054159,219.06,219.0,13.99460621]
[1731711912385,4.5651,219.06,219.0,13.90093159]
[1731711912580,48.46489897,219.08,219.0,13.90093159]
[1731711912768,34.68945738,219.08,219.02,13.77544159]
[1731711913188,12.64275738,219.08,219.02,13.77544159]
[1731711916484,26.41819897,219.08,219.0,13.77544159]
[1731711917878,11.4109,219.09,219.0,13.77544159]
[1731711918069,25.18634159,219.09,219.0,13.77544159]
[1731711919472,13.77544159,219.03,218.99,20.0]
[1731711919673,13.77544159,219.05,219.0,23.902374]
[1731711921690,18.34064159,219.05,219.0,23.902374]
[1731711922790,13.77544159,219.03,218.98,8.9958]
[1731711923774,13.77544159,219.01,218.95,2.01599732]
[1731711923977,13.77544159,218.96,218.95,2.01599732]
[1731711924180,13.77544159,218.96,218.94,2.01613913]
[1731711924571,21.7204,219.04,218.94,2.01613913]
[1731711924769,13.77544159,218.99,218.93,6.58373913]
[1731711924969,13.77544159,218.97,218.94,2.01613913]
[1731711925165,13.77544159,218.95,218.93,2.01613913]
[1731711925386,13.77544159,218.97,218.93,2.01613913]
[1731711926279,13.77544159,218.97,218.94,2.01613913]
[1731711926679,18.34224159,218.97,218.94,2.01613913]
[1731711927079,13.77544159,218.97,218.94,2.01613913]
[1731711928890,18.34224159,218.97,218.94,2.01613913]
[1731711929393,13.77544159,218.97,218.94,2.01613913]
[1731711929696,18.34224159,218.97,218.94,2.01613913]
[1731711930372,18.34224159,218.97,218.95,2.01613913]
[1731711932376,18.34224159,218.97,218.96,2.01613913]
[1731711932773,18.34224159,218.97,218.95,2.01613913]
[1731711932983,13.77544159,218.96,218.92,2.01613913]
[1731711933196,13.77544159,218.93,218.92,2.01613913]
[1731711933904,13.77544159,218.93,218.88,0.09367462]
[1731711934194,13.77544159,218.95,218.88,0.09367462]
[1731711934398,13.77544159,218.95,218.94,2.02950531]
[1731711934581,18.34264159,218.95,218.94,2.02950531]
[1731711934981,18.34264159,218.95,218.93,2.02950531]
[1731711935195,162.0,219.03,218.93,2.02950531]
[1731711935196,13.77544159,218.97,218.93,2.02950531]
[1731711935398,13.77544159,219.01,218.95,23.99604862]
[1731711935698,13.77544159,219.01,218.97,2.02950531]
[1731711935906,13.77544159,219.01,218.98,2.02950531]
[1731711936081,4.5657,219.02,218.98,2.02950531]
[1731711936718,0.1,219.35,219.08,68.8]
[1731711936997,5.223e-05,219.56,219.55,70.22549]
[1731711937177,0.2770496,219.55,219.54,0.22549]
[1731711937378,5.223e-05,219.56,219.55,72.73014926]
[1731711937573,5.223e-05,219.56,219.55,72.83014926]
[1731711937801,5.223e-05,219.56,219.55,23.83305782]
[1731711937983,5.223e-05,219.56,219.55,98.66069644]
[1731711938175,5.223e-05,219.56,219.55,0.90981326]
[1731711938377,5.223e-05,219.56,219.55,13.77544159]
[1731711938794,5.223e-05,219.56,219.55,41.22356797]
[1731711939009,5.223e-05,219.56,219.55,68.79168362]
[1731711939175,0.90981326,219.71,219.56,0.09367462]
[1731711939383,35.56460887,219.67,219.63,1.9989334]
[1731711939576,4.5516,219.7,219.63,1.9989334]
[1731711939780,35.56460887,219.68,219.64,7.9971288]
[1731711939981,7.07298124,219.75,219.64,1.9989334]
[1731711940204,7.07298124,219.75,219.65,7.99672897]
[1731711940205,7.9827945,219.75,219.65,7.99672897]
[1731711940389,35.56460887,219.71,219.65,1.9989334]
[1731711940582,35.56460887,219.69,219.65,1.9989334]
[1731711940783,35.56460887,219.69,219.64,1.9989334]
[1731711941086,35.56460887,219.71,219.64,1.9989334]
[1731711941288,35.56460887,219.71,219.6,0.34465462]
[1731711942202,35.56460887,219.69,219.6,0.12549]
[1731711942383,35.56460887,219.64,219.54,20.0]
[1731711942582,35.56460887,219.57,219.49,0.1]
[1731711942902,35.56460887,219.59,219.49,0.1]
[1731711943094,35.56460887,219.61,219.52,0.1]
[1731711943403,35.56460887,219.64,219.53,5.5725705]
[1731711943608,35.56460887,219.68,219.58,0.09367462]
[1731711943907,35.56460887,219.64,219.6,0.09367462]
[1731711944085,35.56460887,219.66,219.62,0.21916462]
[1731711944290,35.56460887,219.66,219.63,0.12549]
[1731711944702,35.56460887,219.66,219.63,5.46084033]
[1731711945284,35.56460887,219.64,219.63,5.46084033]
[1731711945616,35.56460887,219.67,219.6,26.13966717]
[1731711946001,35.56460887,219.67,219.6,6.13966717]
[1731711947009,35.56460887,219.69,219.6,6.04599255]
[1731711947392,35.56460887,219.71,219.63,0.09367462]
[1731711947597,35.56460887,219.71,219.65,0.25098]
[1731711947798,35.56460887,219.71,219.67,0.12549]
[1731711948001,35.56460887,219.71,219.68,5.803607]
[1731711948187,35.56460887,219.69,219.65,5.64905296]
[1731711948391,35.56460887,219.66,219.58,0.1]
[1731711948700,35.56460887,219.63,219.58,0.1]
[1731711948882,35.56460887,219.61,219.53,0.1]
[1731711949088,35.56460887,219.65,219.54,35.56460887]
[1731711949285,35.56460887,219.67,219.56,35.56460887]
[1731711949487,35.56460887,219.67,219.57,5.55507154]
[1731711949907,40.11650887,219.69,219.6,35.56460887]
[1731711950107,35.56460887,219.69,219.61,5.55507154]
[1731711950298,35.56460887,219.71,219.61,5.55507154]
[1731711950492,4.5514,219.72,219.61,5.55507154]
[1731711950493,35.56460887,219.69,219.62,0.12549]
[1731711951605,35.56460887,219.69,219.59,0.25098]
[1731711951809,35.56460887,219.69,219.59,35.81558887]
[1731711951996,35.56460887,219.69,219.59,41.21451596]
[1731711952196,35.56460887,219.69,219.59,5.64990709]
[1731711952524,4.552,219.68,219.59,0.25098]
[1731711953311,35.56460887,219.67,219.59,0.25098]
[1731711953499,35.56460887,219.65,219.58,0.12549]
[1731711953903,35.56460887,219.65,219.57,0.21916462]
[1731711954095,40.11660887,219.68,219.58,35.56460887]
[1731711954420,40.11660887,219.68,219.59,0.12549]
[1731711954990,4.552,219.68,219.6,35.56460887]
[1731711955193,4.552,219.68,219.61,5.485328]
[1731711955404,4.552,219.68,219.62,35.56460887]
[1731711955604,40.11660887,219.68,219.63,5.60784912]
[1731711956901,4.652,219.68,219.54,35.56460887]
[1731711957101,35.56460887,219.6,219.5,35.56460887]
[1731711957305,36.47442213,219.67,219.46,35.56460887]
[1731711957306,35.56460887,219.54,219.46,35.56460887]
[1731711957811,35.56460887,219.56,219.47,0.09367462]
[1731711958018,35.56460887,219.56,219.48,35.56460887]
[1731711958406,35.56460887,219.56,219.49,0.12549]
[1731711958705,4.5547,219.55,219.49,0.12549]
[1731711958895,4.5547,219.55,219.49,22.03212432]
[1731711960201,21.90663432,219.56,219.49,22.03212432]
[1731711960401,21.90663432,219.58,219.49,22.03212432]
[1731711960909,21.90663432,219.58,219.51,21.90663432]
[1731711961500,21.90663432,219.58,219.49,22.03212432]
[1731711961808,4.5543,219.57,219.49,22.03212432]
[1731711962555,4.5543,219.57,219.49,21.90663432]
[1731711963099,21.90663432,219.55,219.47,21.90663432]
[1731711963299,21.90663432,219.55,219.41,0.1]
[1731711963300,21.90663432,219.51,219.42,21.90663432]
[1731711963513,21.90663432,219.51,219.39,70.1]
[1731711963514,21.90663432,219.51,219.44,21.90663432]
[1731711963800,4.5546,219.56,219.5,21.90663432]
[1731711965599,4.5546,219.56,219.48,21.90663432]
[1731711966009,4.5546,219.56,219.5,21.90663432]
[1731711967157,1.00981326,219.63,219.54,21.90663432]
[1731711967158,15.9365,219.62,219.54,21.90663432]
[1731711968115,37.84313432,219.62,219.54,21.90663432]
[1731711969033,37.84313432,219.62,219.56,21.90663432]
[1731711969034,4.5533,219.62,219.56,21.90663432]
[1731711969229,4.5533,219.62,219.57,0.12549]
[1731711969631,4.5533,219.62,219.58,21.90663432]
[1731711970252,4.5526,219.65,219.58,21.90663432]
[1731711970830,4.5526,219.65,219.59,0.12549]
[1731711971045,4.5526,219.65,219.6,21.90663432]
[1731711971253,4.5526,219.65,219.6,28.33672851]
[1731711972129,4.552,219.68,219.6,28.33672851]
[1731711973237,4.552,219.68,219.62,21.90663432]
[1731711973441,4.552,219.68,219.63,0.12549]
[1731711973863,4.552,219.68,219.62,21.90663432]
[1731711974057,4.552,219.68,219.61,0.12549]
[1731711974436,4.552,219.68,219.6,24.12153862]
[1731711975127,4.5516,219.7,219.6,24.12153862]
[1731711976213,4.5516,219.7,219.6,29.12506906]
[1731711976415,4.5516,219.7,219.6,28.90590444]
[1731711976727,21.90663432,219.62,219.57,21.90663432]
[1731711976926,21.90663432,219.65,219.56,21.90663432]
[1731711977133,21.90663432,219.65,219.58,21.90663432]
[1731711977315,21.90663432,219.67,219.58,21.90663432]
[1731711978007,21.90663432,219.67,219.59,0.12549]
[1731711978427,12.38891326,219.7,219.54,21.90663432]
[1731711978428,21.90663432,219.65,219.54,21.90663432]
[1731711979321,21.90663432,219.65,219.56,21.90663432]
[1731711979712,21.90663432,219.65,219.57,0.12549]
[1731711980013,21.90663432,219.65,219.56,21.90663432]
[1731711981022,4.5529,219.64,219.56,21.90663432]
[1731711981334,4.5529,219.64,219.57,3.4151726]
[1731711981743,15.9351,219.64,219.57,3.4151726]
[1731711981912,21.90663432,219.62,219.55,3.4151726]
[1731711982116,21.90663432,219.62,219.56,3.4151726]
[1731711982329,21.90663432,219.62,219.55,3.4151726]
[1731711982625,21.90663432,219.62,219.56,3.4151726]
[1731711982835,21.90663432,219.62,219.57,3.4151726]
[1731711983028,4.5535,219.61,219.58,3.4151726]
[1731711983339,21.90663432,219.6,219.5,21.90663432]
[1731711983537,21.90663432,219.6,219.51,3.41567882]
[1731711983730,21.90663432,219.58,219.52,3.41567882]
[1731711984035,21.90663432,219.58,219.53,3.41567882]
[1731711984220,21.90663432,219.58,219.54,3.41567882]
[1731711984533,21.90663432,219.58,219.55,3.41567882]
[1731711984738,21.90663432,219.58,219.5,21.90663432]
[1731711984932,0.90981326,219.6,219.53,21.90663432]
[1731711985115,26.46053432,219.59,219.54,3.41565968]
[1731711985315,26.46053432,219.59,219.55,3.41565968]
[1731711985615,26.46053432,219.59,219.51,21.90663432]
[1731711985815,26.46053432,219.59,219.52,3.41553577]
[1731711986027,26.46053432,219.59,219.53,3.41553577]
[1731711986229,26.46053432,219.59,219.54,3.41553577]
[1731711986531,4.5539,219.59,219.55,3.41553577]
[1731711986743,4.5539,219.59,219.55,21.90663432]
[1731711986942,4.5539,219.59,219.54,21.90663432]
[1731711987232,4.5539,219.59,219.55,3.41564879]
[1731711987542,4.5539,219.59,219.54,21.90663432]
[1731711987833,0.90981326,219.58,219.55,3.41562654]
[1731711988038,26.46053432,219.59,219.55,3.41562654]
[1731711988244,27.37034758,219.59,219.51,3.41562654]
[1731711988417,27.37034758,219.59,219.5,21.90663432]
[1731711988418,15.9387,219.59,219.52,25.32226086]
[1731711988743,4.5539,219.59,219.52,21.90663432]
[1731711989427,16.84851326,219.59,219.52,21.90663432]
[1731711989733,4.5539,219.59,219.52,21.90663432]
[1731711990735,26.46053432,219.59,219.5,30.9381861]
[1731711990933,18.24509005,219.59,219.5,13.69119005]
[1731711991119,19.15490331,219.59,219.5,13.69119005]
[1731711991323,13.69119005,219.57,219.48,13.69119005]
[1731711992338,19.15490331,219.59,219.5,13.69119005]
[1731711992527,0.90981326,219.59,219.53,13.69119005]
[1731711992726,4.5534,219.62,219.58,13.69119005]
[1731711992943,18.24459005,219.62,219.54,13.69119005]
[1731711993921,19.15440331,219.62,219.54,13.69119005]
[1731711994124,18.24459005,219.62,219.54,13.69119005]
[1731711994942,4.5534,219.62,219.54,13.69119005]
[1731711995142,4.5534,219.62,219.56,13.69119005]
[1731711996721,4.5529,219.64,219.56,18.24559005]
[1731711996921,42.62039005,219.66,219.58,13.69119005]
[1731711997121,42.62039005,219.66,219.57,0.34465462]
[1731711997122,4.5526,219.66,219.6,13.69119005]
[1731711997329,13.69119005,219.7,219.6,13.69119005]
[1731711998343,13.69119005,219.7,219.59,0.34465462]
[1731711998344,13.69119005,219.64,219.59,0.34465462]
[1731711998523,4.5516,219.7,219.59,0.34465462]
[1731711998727,18.24279005,219.7,219.59,14.03584467]
[1731711999442,18.24279005,219.7,219.6,4.5537]
[1731712000632,13.69119005,219.68,219.6,4.5537]
[1731712000940,4.5512,219.72,219.6,4.5537]
[1731712000941,13.69119005,219.7,219.6,18.24489005]
[1731712001346,13.69119005,219.7,219.61,0.34465462]
[1731712001543,13.77828831,219.7,219.61,0.34465462]
[1731712001729,0.08709826,219.7,219.66,13.69119005]
[1731712002745,0.08709826,219.7,219.66,18.24359005]
[1731712003143,0.08709826,219.7,219.66,13.69119005]
[1731712003331,4.63879826,219.7,219.64,25.07319005]
[1731712004243,0.08709826,219.7,219.64,29.62609005]
[1731712007952,13.69119005,219.65,219.62,4.5532]
[1731712008254,13.69119005,219.68,219.62,4.5532]
[1731712009160,18.32988831,219.7,219.62,4.5532]
[1731712010147,18.32988831,219.7,219.61,13.69119005]
[1731712010351,18.32988831,219.7,219.61,18.24459005]
[1731712014856,18.32988831,219.7,219.61,24.2845398]
[1731712017147,18.32988831,219.7,219.61,19.7311398]
[1731712021142,18.32988831,219.7,219.61,24.2844398]
[1731712021339,18.32988831,219.7,219.61,19.7311398]
[1731712022234,0.08709826,219.7,219.65,13.69119005]
[1731712022438,4.63869826,219.7,219.65,13.69119005]
[1731712022941,4.63869826,219.7,219.64,8.7520179]
[1731712023439,4.63869826,219.7,219.64,13.3048179]
[1731712023856,0.08709826,219.7,219.64,13.3048179]
[1731712024066,0.08709826,219.7,219.66,8.7520179]
[1731712024859,0.08709826,219.7,219.66,13.67234116]
[1731712026058,0.08709826,219.7,219.66,18.22474116]
[1731712027048,0.08709826,219.7,219.66,13.67234116]
[1731712027243,4.63869826,219.7,219.64,13.67234116]
[1731712027466,4.63869826,219.7,219.62,13.67234116]
[1731712027666,18.31103942,219.7,219.62,13.67234116]
[1731712028143,13.67234116,219.68,219.6,13.67234116]
[1731712028767,13.67234116,219.68,219.58,13.67234116]
[1731712029465,13.67234116,219.64,219.56,13.67234116]
[1731712029762,13.67234116,219.62,219.55,15.9413]
[1731712030747,13.67234116,219.64,219.56,13.67234116]
[1731712031063,13.67234116,219.64,219.56,19.71488307]
[1731712031064,18.22524116,219.64,219.56,19.71488307]
[1731712031258,18.22524116,219.64,219.56,6.04254191]
[1731712031460,13.67234116,219.6,219.51,25.061242]
[1731712031663,13.67234116,219.6,219.52,13.67234116]
[1731712031950,13.75943942,219.6,219.52,13.67234116]
[1731712032563,4.5539,219.59,219.52,13.67234116]
[1731712033564,0.08709826,219.6,219.54,13.67234116]
[1731712033751,4.64079826,219.6,219.54,13.67234116]
[1731712035171,0.08709826,219.6,219.56,13.67234116]
[1731712035877,4.64079826,219.6,219.54,25.05974116]
[1731712036165,4.64079826,219.6,219.54,13.67234116]
[1731712037277,0.08709826,219.6,219.59,37.57471516]
[1731712037457,0.08709826,219.6,219.59,20.79475724]
[1731712037658,0.08709826,219.6,219.59,44.69713124]
[1731712037861,0.08709826,219.6,219.59,51.00061204]
[1731712038777,0.08709826,219.6,219.59,19.97582196]
[1731712039067,0.08709826,219.6,219.59,13.67234116]
[1731712039870,0.08709826,219.6,219.57,11.3857]
[1731712039871,0.08709826,219.6,219.57,25.05804116]
[1731712040071,0.08709826,219.6,219.57,29.61234116]
[1731712040253,0.08709826,219.6,219.57,13.67234116]
[1731712040663,0.08709826,219.6,219.59,13.67234116]
[1731712041383,0.08709826,219.6,219.57,13.67234116]
[1731712041784,0.08709826,219.6,219.56,11.3864]
[1731712041956,0.08709826,219.6,219.56,15.9409]
[1731712042157,0.08709826,219.6,219.56,11.3864]
[1731712042895,0.08709826,219.6,219.56,25.05874116]
[1731712043685,4.64079826,219.6,219.54,13.67234116]
[1731712044478,4.64079826,219.6,219.52,25.06064116]
[1731712044675,5.55061152,219.6,219.52,25.06064116]
[1731712045181,0.08709826,219.6,219.54,13.67234116]
[1731712045367,13.67234116,219.59,219.52,13.67234116]
[1731712045676,13.67234116,219.59,219.45,19.66758501]
[1731712045677,4.5543,219.57,219.5,13.67234116]
[1731712046566,13.67234116,219.55,219.47,15.9472]
[1731712046774,13.67234116,219.55,219.48,13.67234116]
[1731712047086,0.99691152,219.56,219.48,13.67234116]
[1731712047478,0.08709826,219.56,219.52,13.67234116]
[1731712047788,4.64169826,219.56,219.49,13.67234116]
[1731712051276,4.64169826,219.56,219.48,4.5561]
[1731712051469,4.64169826,219.56,219.5,13.67234116]
[1731712051686,14.58215442,219.55,219.48,13.67234116]
[1731712051876,14.58215442,219.55,219.47,13.67234116]
[1731712052876,4.5549,219.54,219.49,13.67234116]
[1731712053270,4.5549,219.54,219.48,13.67234116]
[1731712054676,4.5549,219.54,219.49,13.67234116]
[1731712055387,5.55161152,219.56,219.5,13.67234116]
[1731712055776,5.55161152,219.56,219.43,11.3931]
[1731712055777,0.08709826,219.56,219.51,13.67234116]
[1731712056184,0.08709826,219.56,219.55,13.67234116]
[1731712058276,0.08709826,219.56,219.53,18.22744116]
[1731712059381,0.08709826,219.56,219.55,13.67234116]
[1731712059776,0.08709826,219.56,219.53,13.67234116]
[1731712060794,0.08709826,219.56,219.54,8.75970321]
[1731712060983,0.08709826,219.56,219.47,38.7295]
[1731712061192,0.08709826,219.56,219.51,8.75970321]
[1731712061494,0.08709826,219.56,219.53,8.75970321]
[1731712061699,0.08709826,219.56,219.55,8.75970321]
[1731712063405,0.08709826,219.56,219.52,11.3884]
[1731712064000,0.08709826,219.56,219.51,8.75970321]
[1731712064382,0.08709826,219.56,219.51,13.31520321]
[1731712066382,4.64169826,219.56,219.5,8.75970321]
[1731712066900,0.08709826,219.56,219.54,8.75970321]
[1731712067103,0.90981326,219.68,219.56,24.027864]
[1731712067403,10.53391326,219.72,219.65,8.75970321]
[1731712067654,9.6241,219.72,219.65,8.75970321]
[1731712067780,15.08521326,219.72,219.65,8.75970321]
[1731712068489,15.08521326,219.72,219.65,13.31230321]
[1731712068994,15.08521326,219.72,219.65,13.67312904]
[1731712070717,28.7583423,219.72,219.64,4.5527]
[1731712070887,15.08521326,219.72,219.64,4.5527]
[1731712071489,5.46111326,219.72,219.65,13.67312904]
[1731712073415,25.9801,219.73,219.65,29.60742904]
[1731712073614,26.88991326,219.73,219.65,29.60742904]
[1731712074508,31.44091326,219.73,219.65,29.60742904]
[1731712075100,13.67312904,219.72,219.65,29.60742904]
[1731712075619,14.5829423,219.72,219.65,29.60742904]
[1731712075819,19.1342423,219.72,219.65,15.9343]
[1731712076326,5.46111326,219.72,219.65,15.9343]
[1731712076615,4.5513,219.72,219.65,15.9343]
[1731712076789,5.46111326,219.72,219.65,15.9343]
[1731712077410,13.67312904,219.77,219.68,13.67312904]
[1731712077626,0.90981326,219.76,219.68,13.67312904]
[1731712078394,5.46031326,219.76,219.68,13.67312904]
[1731712078698,5.46031326,219.76,219.68,18.22512904]
[1731712079799,5.46031326,219.76,219.66,13.67312904]
[1731712079800,13.67312904,219.75,219.66,13.67312904]
[1731712080913,13.67312904,219.75,219.67,15.9329]
[1731712084118,13.67312904,219.75,219.69,4.5518]
[1731712085506,13.67312904,219.75,219.69,15.9314]
[1731712085707,13.67312904,219.71,219.68,22.48]
[1731712087749,13.67312904,219.71,219.66,4.5524]
[1731712088634,13.67312904,219.67,219.6,11.3842]
[1731712088834,8.75995037,219.61,219.58,4.5539]
[1731712089037,8.75995037,219.61,219.53,8.75995037]
[1731712089038,8.75995037,219.61,219.55,11.3864]
[1731712089240,8.75995037,219.63,219.55,20.14635037]
[1731712089628,8.75995037,219.63,219.55,24.70105037]
[1731712090175,8.75995037,219.61,219.52,8.75995037]
[1731712090349,0.90981326,219.6,219.52,8.75995037]
[1731712091228,0.90981326,219.6,219.53,4.5551]
[1731712091447,8.75995037,219.59,219.51,11.389]
[1731712091642,0.90981326,219.58,219.51,11.389]
[1731712092523,8.75995037,219.57,219.51,11.389]
[1731712092725,0.90981326,219.56,219.47,13.31615037]
[1731712092940,14.60660539,219.56,219.49,13.69679213]
[1731712093235,18.25099213,219.58,219.5,4.5558]
[1731712093452,13.69679213,219.53,219.42,11.3935]
[1731712093653,13.69679213,219.49,219.38,4.5583]
[1731712093840,0.90981326,219.48,219.4,13.69679213]
[1731712094040,0.90981326,219.48,219.42,13.69679213]
[1731712094240,20.90981326,219.5,219.42,13.69679213]
[1731712094764,13.69679213,219.49,219.42,13.69679213]
[1731712094923,0.90981326,219.48,219.42,13.69679213]
[1731712095245,5.46601326,219.48,219.42,13.69679213]
[1731712095546,0.90981326,219.48,219.42,13.69679213]
[1731712095751,0.90981326,219.48,219.42,18.25409213]
[1731712095953,0.90981326,219.49,219.42,18.25409213]
[1731712096844,0.90981326,219.49,219.42,13.69679213]
[1731712097032,0.90981326,219.49,219.4,13.69679213]
[1731712097033,34.60660539,219.49,219.4,13.69679213]
[1731712097240,24.5562,219.48,219.4,13.69679213]
[1731712097440,0.90981326,219.47,219.4,13.69679213]
[1731712098337,4.5565,219.47,219.4,13.69679213]
[1731712099732,0.90981326,219.46,219.4,13.69679213]
[1731712101540,33.69679213,219.49,219.42,13.69679213]
[1731712101541,0.90981326,219.48,219.42,13.69679213]
[1731712101941,39.86449213,219.46,219.33,11.398]
[1731712102145,0.90981326,219.45,219.35,13.69679213]
[1731712102497,0.90981326,219.45,219.33,11.398]
[1731712102498,20.90981326,219.45,219.37,13.69679213]
[1731712103253,24.557,219.44,219.37,13.69679213]
[1731712103547,0.90981326,219.43,219.37,13.69679213]
[1731712104043,34.60660539,219.43,219.35,13.69679213]
[1731712104246,34.60660539,219.43,219.33,25.09479213]
[1731712104751,20.0,219.4,219.33,13.69679213]
[1731712104959,0.90981326,219.39,219.33,13.69679213]
[1731712105333,4.5583,219.38,219.33,13.69679213]
[1731712105534,4.5583,219.38,219.31,13.69679213]
[1731712105535,20.90981326,219.37,219.31,13.69679213]
[1731712105759,14.60660539,219.37,219.29,13.69679213]
[1731712106055,0.90981326,219.37,219.31,13.69679213]
[1731712107433,0.90981326,219.38,219.31,18.25639213]
[1731712108241,0.90981326,219.38,219.31,13.69679213]
[1731712108648,14.60660539,219.38,219.31,13.69679213]
[1731712108837,13.69679213,219.36,219.28,29.65759213]
[1731712109036,0.90981326,219.35,219.28,25.09739213]
[1731712109334,0.90981326,219.35,219.3,13.69679213]
[1731712109530,0.90981326,219.37,219.32,13.69679213]
[1731712110040,0.90981326,219.37,219.3,13.69679213]
[1731712110643,5.46851326,219.37,219.3,13.69679213]
[1731712111239,4.5577,219.41,219.32,13.69679213]
[1731712111559,18.25389213,219.44,219.36,13.69679213]
[1731712111769,0.90981326,219.43,219.38,13.69679213]
[1731712111949,0.90981326,219.45,219.38,13.69679213]
[1731712112751,5.46671326,219.45,219.38,13.69679213]
[1731712113435,5.46671326,219.45,219.38,18.25499213]
[1731712114161,5.46671326,219.45,219.4,13.69679213]
[1731712115450,0.90981326,219.45,219.4,13.69679213]
[1731712116159,5.46661326,219.45,219.4,13.69679213]
[1731712117675,0.90981326,219.45,219.4,13.69679213]
[1731712118565,0.90981326,219.45,219.4,18.25459213]
[1731712119062,5.46671326,219.45,219.4,13.69679213]
[1731712120565,0.90981326,219.45,219.4,13.69679213]
[1731712125053,0.90981326,219.45,219.41,13.69679213]
[1731712126875,0.90981326,219.45,219.39,13.33026822]
[1731712127059,0.90981326,219.45,219.4,8.77226822]
[1731712127557,5.46661326,219.45,219.4,8.77226822]
[1731712128168,0.90981326,219.45,219.4,8.77226822]
[1731712130679,0.90981326,219.45,219.36,11.3965]
[1731712130680,14.23888148,219.45,219.37,4.5583]
[1731712130880,14.23888148,219.45,219.38,8.77226822]
[1731712131259,0.90981326,219.45,219.39,8.77226822]
[1731712131466,26.97751326,219.46,219.43,8.77226822]
[1731712131950,1.00981326,219.54,219.45,8.77226822]
[1731712132151,1.00981326,219.54,219.34,45.08407288]
[1731712132152,33.8806,219.53,219.48,8.77226822]
[1731712132352,0.90981326,219.52,219.48,8.77226822]
[1731712132778,0.90981326,219.52,219.47,13.69669457]
[1731712133476,5.46521326,219.52,219.45,13.69669457]
[1731712133777,13.69669457,219.51,219.44,11.3925]
[1731712133981,0.90981326,219.5,219.44,11.3925]
[1731712135155,0.90981326,219.5,219.45,13.69669457]
[1731712135362,0.90981326,219.5,219.47,13.69669457]
[1731712136477,0.90981326,219.5,219.45,4.5568]
[1731712136686,0.90981326,219.5,219.45,18.25349457]
[1731712139783,5.46581326,219.5,219.45,13.69669457]
[1731712139981,5.46581326,219.5,219.43,25.08949457]
[1731712140481,19.26250783,219.5,219.41,13.69669457]
[1731712141282,13.69669457,219.46,219.39,25.09159457]
[1731712141485,0.90981326,219.45,219.39,25.09159457]
[1731712141981,4.557,219.44,219.39,25.09159457]
[1731712142160,0.90981326,219.43,219.39,25.09159457]
[1731712143266,0.90981326,219.45,219.39,29.64959457]
[1731712143462,0.90981326,219.46,219.41,13.69669457]
[1731712143668,25.46591326,219.49,219.43,13.69669457]
[1731712144197,0.90981326,219.49,219.41,13.69669457]
[1731712144368,0.90981326,219.49,219.43,13.69669457]
[1731712145577,0.90981326,219.49,219.45,13.69669457]
[1731712145766,0.90981326,219.5,219.47,13.69669457]
[1731712145973,0.90981326,219.52,219.47,13.69669457]
[1731712146573,0.90981326,219.52,219.45,13.69669457]
[1731712146790,5.46521326,219.52,219.45,18.25339457]